lending/lending_fUSD_20260222
["ID","MTS","AMOUNT","RATE_DAILY","PERIOD"]
[406353986,1771785040614,-151.0,0.00018,2]
[406353987,1771785040623,-151.0,0.00018,2]
[406353988,1771785040633,-758.392741,0.00018,2]
[406353989,1771785040642,-758.392741,0.00018,2]
[406353990,1771785040651,-758.392741,0.00018,2]
[406353991,1771785040661,-758.392741,0.00018,2]
[406353992,1771785040670,-1000.0,0.00018121,2]
[406353993,1771785040680,-500.0,0.00018121,2]
[406353994,1771785040690,-1000.0,0.000182,2]
[406353995,1771785040699,-2800.840232,0.0001821,2]
[406353996,1771785040708,-273.95,0.00018217,2]
[406353997,1771785040718,-160.0,0.00018422,2]
[406353998,1771785040727,-173.78509278,0.00018422,2]
[406353999,1771785040736,-587.0,0.00018637,2]
[406354000,1771785040746,-1500.0,0.00018668,2]
[406354001,1771785040755,-2351.0,0.00018825,2]
[406354002,1771785040765,-200.0,0.00019082,2]
[406354003,1771785040774,-273.95,0.00019128,2]
[406354004,1771785040784,-1379.37432712,0.00019178,2]
[406354006,1771785040793,-152.344841,0.00019178,2]
[406354008,1771785040802,-151.0,0.00019178,2]
[406354009,1771785040811,-2000.0,0.00019216,2]
[406354011,1771785040821,-1600.0,0.00019285,2]
[406354013,1771785040830,-512.36453981,0.00019764,2]
[406354014,1771785040839,-250.0,0.00019855,2]
[406354015,1771785040849,-4939.40217074,0.000199,3]
[406354016,1771785040858,-9150.70201334,0.0001995,15]
[406354017,1771785040867,-153.26383928,0.0002,2]
[406354018,1771785040877,-1001.14515122,0.0002,2]
[406354019,1771785040886,-273.95,0.00020039,2]
[406354020,1771785040895,-823.0,0.00020385,2]
[406354022,1771785040904,-700.0,0.00020548,2]
[406354024,1771785040914,-350.0,0.00020565,2]
[406354025,1771785040923,-348.39439338,0.00020672,2]
[406354026,1771785040933,-3292.0,0.00020695,2]
[406354027,1771785040942,-589.11567121,0.0002071,2]
[406354028,1771785040952,-151.0,0.00020805,2]
[406354029,1771785040962,-121660.33264353,0.00020808,2]
[406354030,1771785040980,-336.030554,0.00020808,2]
[406354031,1771785040992,-145760.27774835,0.00020808,2]
[406354032,1771785041008,-295.365,0.00020808,2]
[406354039,1771785045068,-350.1161556,0.000155,2]
[406354040,1771785045077,-442.83496951,0.00015577,2]
[406354041,1771785045087,-12046.25347179,0.00020808,2]
[406354074,1771785504306,155.17,0.000134,2]
[406354075,1771785504522,155.17,0.00013896,2]
[406354076,1771785504739,155.17,0.00014392,2]
[406354077,1771785504941,155.17,0.00014888,2]
[406354079,1771785748282,1073.63,0.00013727,2]
[406354194,1771786232521,-276.0,0.0001521,2]
[406354195,1771786232531,-600.0,0.0001521,2]
[406354196,1771786232541,-300.0,0.0001521,2]
[406354197,1771786232551,-195.0,0.0001521,2]
[406354198,1771786232561,-2411.64893281,0.0001521,2]
[406354199,1771786232570,-600.0,0.0001521,2]
[406354200,1771786232581,-524.9834,0.0001521,2]
[406354201,1771786232590,-300.0,0.00015245,2]
[406354202,1771786232600,-155.17,0.00015385,2]
[406354203,1771786232611,-1200.0,0.00015394,2]
[406354204,1771786232621,-9192.42070194,0.00015396,2]
[406354205,1771786232633,-7997.97282217,0.00015396,2]
[406354206,1771786232643,-300.0,0.00015577,2]
[406354207,1771786232653,-500.0,0.00015578,2]
[406354208,1771786232663,-500.0,0.00015578,2]
[406354209,1771786232672,-500.0,0.00015578,2]
[406354210,1771786232681,-500.0,0.00015578,2]
[406354211,1771786232691,-500.0,0.00015578,2]
[406354212,1771786232700,-500.0,0.00015578,2]
[406354213,1771786232710,-500.0,0.00015578,2]
[406354214,1771786232722,-500.0,0.00015578,2]
[406354215,1771786232732,-500.0,0.00015578,2]
[406354216,1771786232741,-500.0,0.00015578,2]
[406354217,1771786232750,-500.0,0.00015578,2]
[406354218,1771786232760,-500.0,0.00015578,2]
[406354219,1771786232769,-279.79172622,0.00015578,2]
[406354220,1771786232779,-500.0,0.00015578,2]
[406354221,1771786232788,-500.0,0.00015578,2]
[406354222,1771786232797,-500.0,0.00015578,2]
[406354223,1771786232806,-500.0,0.00015578,2]
[406354224,1771786232816,-500.0,0.00015578,2]
[406354225,1771786232825,-500.0,0.00015578,2]
[406354226,1771786232835,-500.0,0.00015578,2]
[406354227,1771786232844,-180.42022769,0.00015578,2]
[406354228,1771786232853,-500.0,0.00015578,2]
[406354229,1771786232863,-500.0,0.00015578,2]
[406354230,1771786232876,-500.0,0.00015578,2]
[406354231,1771786232886,-500.0,0.00015578,2]
[406354232,1771786232896,-500.0,0.00015578,2]
[406354233,1771786232906,-500.0,0.00015578,2]
[406354234,1771786232916,-500.0,0.00015578,2]
[406354235,1771786232926,-500.0,0.00015578,2]
[406354236,1771786232935,-28475.65587354,0.00015596,2]
[406354237,1771786232945,-5160.3517,0.00015696,2]
[406354238,1771786232955,-2034.0067,0.00015696,2]
[406354239,1771786232965,-3512.41641363,0.00015696,2]
[406354240,1771786232986,-1003.9834,0.00015696,2]
[406354241,1771786232997,-685.86632813,0.00015696,2]
[406354242,1771786233009,-932.31905122,0.00015696,2]
[406354244,1771786238307,-543.28005178,0.00015696,2]
[406354245,1771786238414,-615.21547425,0.00015696,2]
[406354248,1771786240677,-430.49670968,0.00015696,2]
[406354249,1771786240784,-458.87313864,0.00015696,2]
[406354250,1771786240943,-332.68641226,0.00015696,2]
[406354251,1771786240995,-6262.88474808,0.00015696,2]
[406354264,1771786243618,-720.419996,0.00015696,2]
[406354265,1771786243673,-17202.99037633,0.00015696,2]
[406354266,1771786243683,-500.0,0.00015795,2]
[406354267,1771786243694,-500.0,0.00015795,2]
[406354268,1771786243704,-500.0,0.00015795,2]
[406354269,1771786243717,-500.0,0.00015795,2]
[406354270,1771786243729,-640.66545323,0.00015795,2]
[406354271,1771786243740,-500.0,0.00015795,2]
[406354272,1771786243751,-426.18144467,0.00015795,2]
[406354273,1771786243761,-500.0,0.00015795,2]
[406354274,1771786243771,-333.80336146,0.00015795,2]
[406354275,1771786243782,-500.0,0.00015795,2]
[406354276,1771786243793,-438.92684529,0.00015795,2]
[406354277,1771786243803,-500.0,0.00015795,2]
[406354278,1771786243813,-500.0,0.00015795,2]
[406354279,1771786243824,-500.0,0.00015795,2]
[406354280,1771786243834,-500.0,0.00015795,2]
[406354281,1771786243844,-500.0,0.00015795,2]
[406354282,1771786243854,-500.0,0.00015795,2]
[406354283,1771786243863,-500.0,0.00015795,2]
[406354284,1771786243873,-500.0,0.00015795,2]
[406354285,1771786243884,-500.0,0.00015795,2]
[406354286,1771786243895,-500.0,0.00015795,2]
[406354287,1771786243906,-500.0,0.00015795,2]
[406354288,1771786243917,-500.0,0.00015795,2]
[406354289,1771786243927,-500.0,0.00015795,2]
[406354290,1771786243937,-500.0,0.00015795,2]
[406354291,1771786243948,-500.0,0.00015795,2]
[406354292,1771786243958,-500.0,0.00015795,2]
[406354293,1771786243969,-500.0,0.00015795,2]
[406354294,1771786243979,-500.0,0.00015795,2]
[406354295,1771786243988,-500.0,0.00015795,2]
[406354296,1771786243998,-500.0,0.00015795,2]
[406354297,1771786244007,-500.0,0.00015795,2]
[406354299,1771786244016,-500.0,0.00015795,2]
[406354300,1771786244026,-500.0,0.00015795,2]
[406354301,1771786244035,-500.0,0.00015795,2]
[406354302,1771786244045,-500.0,0.00015795,2]
[406354303,1771786244054,-500.0,0.00015795,2]
[406354304,1771786244064,-500.0,0.00015795,2]
[406354305,1771786244073,-500.0,0.00015795,2]
[406354306,1771786244083,-500.0,0.00015795,2]
[406354307,1771786244093,-444.78355645,0.00015795,2]
[406354308,1771786244102,-500.0,0.00015795,2]
[406354309,1771786244111,-500.0,0.00015795,2]
[406354310,1771786244120,-500.0,0.00015795,2]
[406354311,1771786244129,-500.0,0.00015795,2]
[406354312,1771786244138,-500.0,0.00015795,2]
[406354313,1771786244147,-500.0,0.00015795,2]
[406354314,1771786244156,-500.0,0.00015795,2]
[406354315,1771786244166,-500.0,0.00015795,2]
[406354316,1771786244175,-34130.78704822,0.00015796,2]
[406354317,1771786244184,-166.66,0.00015877,2]
[406354318,1771786244194,-155.17,0.00015881,2]
[406354319,1771786244203,-483.18884841,0.0001596,2]
[406354320,1771786244212,-200.0,0.00016178,2]
[406354321,1771786244222,-500.0,0.00016178,2]
[406354322,1771786244231,-2500.0,0.00016296,2]
[406354324,1771786244241,-155.17,0.00016377,2]
[406354326,1771786244250,-44298.87843162,0.00016396,2]
[406354328,1771786244260,-166.66,0.00016401,2]
[406354330,1771786244269,-555.31,0.00016486,2]
[406354332,1771786244279,-44298.87843162,0.00016496,2]
[406354334,1771786244288,-177.0,0.00016496,2]
[406354335,1771786244298,-7327.93167646,0.00016612,2]
[406354336,1771786244307,-250.0,0.00016699,2]
[406354337,1771786244316,-999.99,0.00016712,2]
[406354338,1771786244326,-150.99,0.00016712,2]
[406354339,1771786244335,-9999.99,0.00016712,2]
[406354340,1771786244344,-9999.99,0.00016712,2]
[406354341,1771786244353,-163.45,0.00016712,2]
[406354342,1771786244363,-214.53464487,0.0001673,2]
[406354343,1771786244372,-500.0,0.0001673,2]
[406354344,1771786244382,-500.0,0.0001673,2]
[406354345,1771786244392,-500.0,0.0001673,2]
[406354346,1771786244400,-200.72007146,0.0001673,2]
[406354347,1771786244411,-300.0,0.00016731,2]
[406354348,1771786244421,-250.0,0.00016731,2]
[406354349,1771786244430,-250.0,0.00016731,2]
[406354350,1771786244439,-500.0,0.00016731,2]
[406354351,1771786244450,-5000.0,0.00016731,2]
[406354352,1771786244459,-600.0,0.00016731,2]
[406354353,1771786244468,-194.0122658,0.00016731,2]
[406354354,1771786244478,-195.0,0.00016731,2]
[406354355,1771786244487,-195.0,0.00016731,2]
[406354356,1771786244496,-300.0,0.00016731,2]
[406354357,1771786244506,-250.0,0.00016731,2]
[406354358,1771786244515,-200.52651247,0.00016731,2]
[406354359,1771786244524,-300.0,0.00016731,2]
[406354360,1771786244534,-600.0,0.00016731,2]
[406354361,1771786244543,-600.0,0.00016731,2]
[406354362,1771786244552,-155.17,0.00016874,2]
[406354363,1771786244561,-166.66,0.00016925,2]
[406354364,1771786244570,-1680.0,0.00016926,2]
[406354365,1771786244579,-555.31,0.0001693,2]
[406354366,1771786244588,-272.20250359,0.0001694,2]
[406354367,1771786244596,-500.0,0.0001694,2]
[406354368,1771786244605,-150.0,0.0001694,2]
[406354369,1771786244613,-296.46563881,0.0001694,2]
[406354370,1771786244622,-150.0,0.0001694,2]
[406354371,1771786244633,-500.0,0.0001694,2]
[406354372,1771786244643,-150.0,0.0001694,2]
[406354373,1771786244653,-500.0,0.0001694,2]
[406354374,1771786244661,-150.0,0.0001694,2]
[406354375,1771786244671,-150.0,0.0001694,2]
[406354376,1771786244681,-150.0,0.0001694,2]
[406354377,1771786244691,-150.0,0.0001694,2]
[406354378,1771786244699,-150.0,0.0001694,2]
[406354379,1771786244708,-150.0,0.0001694,2]
[406354380,1771786244720,-500.0,0.0001694,2]
[406354381,1771786244731,-150.0,0.0001694,2]
[406354382,1771786244740,-150.0,0.0001694,2]
[406354383,1771786244749,-150.0,0.0001694,2]
[406354384,1771786244758,-500.0,0.00016995,2]
[406354385,1771786244769,-150.0,0.00016995,2]
[406354386,1771786244779,-150.0,0.00016995,2]
[406354387,1771786244788,-500.0,0.00016995,2]
[406354388,1771786244799,-150.0,0.00016995,2]
[406354389,1771786244808,-500.0,0.00016995,2]
[406354390,1771786244817,-150.0,0.00016995,2]
[406354391,1771786244826,-150.0,0.00016995,2]
[406354392,1771786244835,-500.0,0.00016995,2]
[406354393,1771786244844,-500.0,0.0001705,2]
[406354394,1771786244853,-202.65175273,0.0001705,2]
[406354395,1771786244862,-150.0,0.0001705,2]
[406354396,1771786244872,-500.0,0.0001705,2]
[406354397,1771786244881,-150.0,0.0001705,2]
[406354398,1771786244890,-500.0,0.0001705,2]
[406354399,1771786244899,-150.0,0.0001705,2]
[406354400,1771786244908,-200.0,0.0001705,2]
[406354401,1771786244917,-500.0,0.0001705,2]
[406354402,1771786244926,-500.0,0.00017104,2]
[406354403,1771786244936,-200.0,0.00017104,2]
[406354404,1771786244946,-150.0,0.00017104,2]
[406354405,1771786244955,-212.55382438,0.00017104,2]
[406354406,1771786244965,-500.0,0.00017104,2]
[406354407,1771786244975,-150.0,0.00017104,2]
[406354408,1771786244984,-224.55054318,0.00017104,2]
[406354409,1771786245145,-150.0,0.00017159,2]
[406354410,1771786245157,-250.0,0.00017159,2]
[406354411,1771786245167,-5558.04864432,0.000172,2]
[406354412,1771786245181,-1769.88303207,0.000172,2]
[406354413,1771786245191,-217.91494634,0.00017214,2]
[406354414,1771786245201,-1.06249919,0.00017317,2]
[406354415,1771786245213,-271.93750081,0.00017317,2]
[406354416,1771786245223,-155.17,0.0001737,2]
[406354417,1771786245233,-166.66,0.00017449,2]
[406354418,1771786245243,-324.0,0.00017489,2]
[406354419,1771786245253,-200.0,0.000175,6]
[406354420,1771786245263,-264.39,0.00017527,2]
[406354421,1771786245273,-617.04551055,0.00017573,2]
[406354422,1771786245282,-500.0,0.00017573,2]
[406354423,1771786245293,-500.0,0.00017573,2]
[406354424,1771786245304,-500.0,0.000176,6]
[406354425,1771786245313,-161.2,0.00017684,2]
[406354426,1771786245324,-373.0,0.00017686,2]
[406354427,1771786245333,-800.0,0.000177,6]
[406354428,1771786245344,-150.0,0.00017739,2]
[406354429,1771786245353,-6601.94853716,0.00017787,2]
[406354430,1771786245365,-725.98313923,0.00017787,2]
[406354431,1771786245375,-1100.0,0.000178,6]
[406354432,1771786245385,-1118.12471694,0.00017808,2]
[406354433,1771786245394,-1118.12471694,0.00017808,2]
[406354434,1771786245403,-1118.12471694,0.00017808,2]
[406354435,1771786245413,-1118.12471694,0.00017808,2]
[406354436,1771786245423,-1118.12471694,0.00017808,2]
[406354437,1771786245432,-1118.12471694,0.00017808,2]
[406354438,1771786245442,-1118.12471694,0.00017808,2]
[406354439,1771786245451,-1118.12471694,0.00017808,2]
[406354440,1771786245461,-1118.12471694,0.00017808,2]
[406354441,1771786245470,-1118.12471694,0.00017808,2]
[406354442,1771786245480,-1118.12471694,0.00017808,2]
[406354443,1771786245490,-1118.12471694,0.00017808,2]
[406354444,1771786245500,-1118.12471694,0.00017808,2]
[406354445,1771786245509,-1118.12471694,0.00017808,2]
[406354446,1771786245519,-1118.12471694,0.00017808,2]
[406354447,1771786245528,-1118.12471694,0.00017808,2]
[406354448,1771786245538,-1118.12471694,0.00017808,2]
[406354449,1771786245547,-1118.12471694,0.00017808,2]
[406354450,1771786245557,-1118.12471694,0.00017808,2]
[406354451,1771786245568,-1118.12471694,0.00017808,2]
[406354452,1771786245578,-1118.12471694,0.00017808,2]
[406354453,1771786245588,-1118.12471694,0.00017808,2]
[406354454,1771786245598,-155.17,0.00017866,2]
[406354455,1771786245607,-1400.0,0.000179,6]
[406354456,1771786245617,-166.66,0.00017974,2]
[406354457,1771786245627,-555.31,0.00017992,2]
[406354458,1771786245637,-487.0,0.00018002,2]
[406354459,1771786245647,-487.0,0.00018002,2]
[406354460,1771786245656,-487.0,0.00018002,2]
[406354461,1771786245666,-487.0,0.00018002,2]
[406354462,1771786245675,-487.0,0.00018002,2]
[406354463,1771786245684,-487.0,0.00018002,2]
[406354464,1771786245693,-487.0,0.00018002,2]
[406354465,1771786245702,-487.0,0.00018002,2]
[406354466,1771786245712,-487.0,0.00018002,2]
[406354467,1771786245727,-487.0,0.00018002,2]
[406354468,1771786245736,-487.0,0.00018002,2]
[406354469,1771786245746,-695.23,0.00018002,2]
[406354470,1771786245755,-500.0,0.00018002,2]
[406354471,1771786245765,-500.0,0.00018002,2]
[406354472,1771786245774,-500.0,0.00018002,2]
[406354473,1771786245783,-500.0,0.00018002,2]
[406354474,1771786245793,-500.0,0.00018002,2]
[406354475,1771786245802,-500.0,0.00018002,2]
[406354476,1771786245811,-500.0,0.00018002,2]
[406354477,1771786245820,-500.0,0.00018002,2]
[406354478,1771786245830,-500.0,0.00018002,2]
[406354479,1771786245839,-500.0,0.00018002,2]
[406354480,1771786245848,-500.0,0.00018002,2]
[406354481,1771786245857,-500.0,0.00018002,2]
[406354482,1771786245867,-500.0,0.00018002,2]
[406354483,1771786245876,-500.0,0.00018002,2]
[406354484,1771786245885,-500.0,0.00018002,2]
[406354485,1771786245895,-500.0,0.00018002,2]
[406354486,1771786245903,-500.0,0.00018002,2]
[406354487,1771786245913,-500.0,0.00018002,2]
[406354488,1771786245922,-500.0,0.00018002,2]
[406354489,1771786245931,-500.0,0.00018002,2]
[406354490,1771786245941,-500.0,0.00018002,2]
[406354491,1771786245949,-500.0,0.00018002,2]
[406354492,1771786245959,-500.0,0.00018002,2]
[406354493,1771786245968,-500.0,0.00018002,2]
[406354494,1771786245978,-500.0,0.00018002,2]
[406354495,1771786245987,-500.0,0.00018002,2]
[406354496,1771786245996,-500.0,0.00018002,2]
[406354497,1771786246006,-500.0,0.00018002,2]
[406354498,1771786246015,-500.0,0.00018002,2]
[406354499,1771786246025,-500.0,0.00018002,2]
[406354500,1771786246034,-500.0,0.00018002,2]
[406354501,1771786246043,-500.0,0.00018002,2]
[406354502,1771786246053,-500.0,0.00018002,2]
[406354503,1771786246062,-500.0,0.00018002,2]
[406354504,1771786246072,-500.0,0.00018002,2]
[406354505,1771786246081,-500.0,0.00018002,2]
[406354506,1771786246091,-500.0,0.00018002,2]
[406354507,1771786246101,-500.0,0.00018002,2]
[406354509,1771786246110,-500.0,0.00018002,2]
[406354510,1771786246119,-500.0,0.00018002,2]
[406354511,1771786246128,-500.0,0.00018002,2]
[406354512,1771786246137,-500.0,0.00018002,2]
[406354513,1771786246146,-500.0,0.00018002,2]
[406354514,1771786246155,-500.0,0.00018002,2]
[406354515,1771786246165,-500.0,0.00018002,2]
[406354516,1771786246174,-500.0,0.00018002,2]
[406354517,1771786246183,-500.0,0.00018002,2]
[406354518,1771786246192,-500.0,0.00018002,2]
[406354519,1771786246201,-482.78681073,0.00018002,2]
[406354520,1771786246210,-555.31,0.00018092,2]
[406354521,1771786246219,-555.31,0.00018092,2]
[406354522,1771786246228,-30415.0831609,0.00018102,2]
[406354523,1771786246238,-102241.36064607,0.00018102,2]
[406354524,1771786246283,-371.52533801,0.00018102,2]
[406354525,1771786246295,-824.0,0.00018102,2]
[406354526,1771786246372,-2498.7,0.00018102,2]
[406354529,1771786248730,-29494.98221622,0.00018102,2]
[406354530,1771786248741,-5114.8089835,0.00018102,2]
[406354531,1771786248751,-32865.5238,0.0001811,2]
[406354532,1771786248760,-1000.0,0.0001811,2]
[406354533,1771786248770,-1000.0,0.00018121,2]
[406354534,1771786248780,-1000.0,0.00018167,2]
[406354535,1771786248789,-2800.840232,0.0001821,2]
[406354536,1771786248799,-7327.93167639,0.00018375,2]
[406354537,1771786248811,-173.78509278,0.00018421,2]
[406354538,1771786248821,-160.0,0.00018421,2]
[406354539,1771786248831,-166.66,0.00018498,2]
[406354540,1771786248841,-150.0,0.00018528,2]
[406354541,1771786248851,-2351.0,0.00018611,2]
[406354542,1771786248861,-182.06658955,0.00018668,2]
[406354543,1771786248871,-348.39439338,0.00018668,2]
[406354544,1771786248882,-1500.0,0.00018668,2]
[406354545,1771786248893,-154.787528,0.00018691,7]
[406354546,1771786248903,-7327.93167639,0.00018962,2]
[406354547,1771786248912,-2012.36453981,0.00019216,2]
[406354548,1771786248922,-7327.93167639,0.0001955,2]
[406354549,1771786248932,-250.0,0.00019882,2]
[406354550,1771786248942,-500.0,0.00019882,2]
[406354551,1771786248952,-203.84209265,0.00019882,2]
[406354552,1771786248962,-500.0,0.00019882,2]
[406354553,1771786248971,-250.0,0.00019882,2]
[406354554,1771786248984,-500.0,0.00019882,2]
[406354555,1771786248995,-500.0,0.00019882,2]
[406354556,1771786249004,-250.0,0.00019882,2]
[406354557,1771786249016,-250.0,0.00019882,2]
[406354558,1771786249025,-500.0,0.00019882,2]
[406354559,1771786249036,-300.0,0.00019882,2]
[406354560,1771786249047,-500.0,0.00019882,2]
[406354561,1771786249056,-250.0,0.00019882,2]
[406354562,1771786249066,-250.0,0.00019882,2]
[406354563,1771786249075,-500.0,0.00019882,2]
[406354564,1771786249084,-300.0,0.00019882,2]
[406354565,1771786249094,-250.0,0.00019882,2]
[406354566,1771786249104,-500.0,0.00019882,2]
[406354567,1771786249113,-250.0,0.00019882,2]
[406354568,1771786249123,-500.0,0.00019882,2]
[406354569,1771786249134,-300.0,0.00019882,2]
[406354570,1771786249145,-500.0,0.00019882,2]
[406354571,1771786249154,-250.0,0.00019882,2]
[406354572,1771786249166,-250.0,0.00019882,2]
[406354573,1771786249175,-500.0,0.00019882,2]
[406354574,1771786249184,-300.0,0.00019882,2]
[406354575,1771786249195,-250.0,0.00019882,2]
[406354576,1771786249205,-500.0,0.00019882,2]
[406354577,1771786249216,-250.0,0.00019882,2]
[406354578,1771786249227,-500.0,0.00019882,2]
[406354579,1771786249237,-300.0,0.00019882,2]
[406354580,1771786249249,-199.12107742,0.00019882,2]
[406354581,1771786249259,-500.0,0.00019882,2]
[406354582,1771786249269,-250.0,0.00019882,2]
[406354583,1771786249278,-500.0,0.00019882,2]
[406354584,1771786249287,-165.87554275,0.00019882,2]
[406354585,1771786249297,-300.0,0.00019882,2]
[406354586,1771786249308,-500.0,0.00019882,2]
[406354587,1771786249318,-257.87287478,0.00019882,2]
[406354588,1771786249327,-500.0,0.00019882,2]
[406354589,1771786249336,-300.0,0.00019882,2]
[406354590,1771786249346,-500.0,0.00019882,2]
[406354591,1771786249355,-500.0,0.00019882,2]
[406354592,1771786249365,-300.0,0.00019882,2]
[406354593,1771786249374,-500.0,0.00019882,2]
[406354594,1771786249385,-500.0,0.00019882,2]
[406354595,1771786249395,-300.0,0.00019882,2]
[406354596,1771786249406,-500.0,0.00019882,2]
[406354597,1771786249416,-300.0,0.00019882,2]
[406354598,1771786249427,-693.3919763,0.00019882,2]
[406354599,1771786249436,-300.0,0.00019882,2]
[406354600,1771786249446,-151.0,0.00019882,2]
[406354601,1771786249455,-500.0,0.00019882,2]
[406354602,1771786249464,-500.0,0.00019882,2]
[406354603,1771786249473,-500.0,0.00019882,2]
[406354604,1771786249483,-500.0,0.00019882,2]
[406354605,1771786249492,-500.0,0.00019882,2]
[406354606,1771786249501,-500.0,0.00019882,2]
[406354607,1771786249510,-500.0,0.00019882,2]
[406354608,1771786249519,-500.0,0.00019882,2]
[406354609,1771786249528,-500.0,0.00019882,2]
[406354610,1771786249537,-500.0,0.00019882,2]
[406354611,1771786249546,-500.0,0.00019882,2]
[406354612,1771786249555,-500.0,0.00019882,2]
[406354613,1771786249564,-500.0,0.00019882,2]
[406354614,1771786249573,-500.0,0.00019882,2]
[406354615,1771786249582,-500.0,0.00019882,2]
[406354616,1771786249591,-500.0,0.00019882,2]
[406354617,1771786249601,-500.0,0.00019882,2]
[406354618,1771786249610,-500.0,0.00019882,2]
[406354619,1771786249619,-624.38742817,0.00019882,2]
[406354620,1771786249628,-200.0,0.00019882,2]
[406354621,1771786249637,-200.0,0.00019882,2]
[406354622,1771786249647,-199.66892992,0.00019882,2]
[406354623,1771786249656,-719.04747942,0.00019937,2]
[406354624,1771786249666,-233.11431957,0.00019937,2]
[406354625,1771786249674,-11375.0,0.00019985,2]
[406354626,1771786249683,-745.65223616,0.00019992,2]
[406354627,1771786249693,-1760.0,0.0002,2]
[406354628,1771786249702,-773.2413689,0.00020047,2]
[406354629,1771786249711,-205.173,0.00020083,2]
[406354630,1771786249722,-250.0,0.00020097,2]
[406354631,1771786249732,-801.85129955,0.00020102,2]
[406354632,1771786249742,-7327.93167639,0.00020137,2]
[406354633,1771786249751,-831.51979763,0.00020157,2]
[406354634,1771786249760,-862.28603014,0.00020212,2]
[406354635,1771786249770,-894.19061326,0.00020267,2]
[406354636,1771786249779,-927.27566595,0.00020322,2]
[406354637,1771786249788,-961.58486559,0.00020377,2]
[406354638,1771786249799,-997.16350561,0.00020432,2]
[406354639,1771786249808,-1000.0,0.00020438,2]
[406354640,1771786249818,-700.0,0.00020446,2]
[406354641,1771786249827,-3292.0,0.00020464,2]
[406354642,1771786249836,-1000.0,0.000205,2]
[406354643,1771786249845,-224017.3167248,0.000206,2]
[406354644,1771786249854,-7327.93167639,0.00020725,2]
[406354645,1771786249865,-226.73826614,0.00020787,2]
[406354646,1771786249875,-30415.0831609,0.00020792,2]
[406354647,1771786249886,-135430.5682003,0.00020792,2]
[406354648,1771786249897,-5114.8089835,0.00020808,2]
[406354649,1771786249907,-180.0,0.00020863,5]
[406354650,1771786249916,-274.0,0.00020899,2]
[406354651,1771786249926,-292.0,0.0002093,2]
[406354652,1771786249936,-273.95,0.00020949,2]
[406354653,1771786249945,-232.0,0.00020972,2]
[406354654,1771786249955,-200.03451288,0.0002099,2]
[406354655,1771786249965,-1197.61315713,0.00021,2]
[406354656,1771786249974,-197.67601321,0.00021,2]
[406354657,1771786249983,-110391.87866356,0.00021,2]
[406354658,1771786249993,-232.0,0.000211,2]
[406354659,1771786250003,-291.0,0.00021148,2]
[406354660,1771786250013,-232.0,0.0002115,2]
[406354661,1771786250022,-232.0,0.0002119,2]
[406354662,1771786250032,-1600.0,0.00021214,2]
[406354663,1771786250041,-2000.0,0.0002123,2]
[406354664,1771786250051,-2000.0,0.0002123,2]
[406354665,1771786250060,-2000.0,0.0002123,2]
[406354666,1771786250070,-274.0,0.00021262,2]
[406354667,1771786250089,-7327.93167639,0.00021312,2]
[406354668,1771786250100,-545.98063576,0.00021345,2]
[406354669,1771786250109,-232.0,0.00021419,2]